bitfinex-derivatives/quotes_SOLF0:USTF0_20241231
["timestamp","ask_amount","ask_price","bid_price","bid_amount"]
[1735608496453,7.7329652,189.03,188.82,7.23404483]
[1735608496750,7.7329652,188.91,188.82,7.23404483]
[1735608496949,2.6523,188.84,188.83,7.7329652]
[1735608497150,10.9729652,188.89,188.82,7.23404483]
[1735608497358,7.7329652,188.87,188.82,7.23404483]
[1735608497555,7.7329652,188.87,188.79,6.2176]
[1735608497556,7.7329652,188.87,188.79,3.0419]
[1735608497759,7.7329652,188.87,188.79,7.7329652]
[1735608497963,12.3372,188.89,188.79,7.7329652]
[1735608498157,2.6529,188.8,188.79,7.7329652]
[1735608498455,2.6529,188.8,188.76,12.14273626]
[1735608499357,24.47993626,188.89,188.76,12.14273626]
[1735608499960,2.6525,188.83,188.74,5.8721]
[1735608500158,24.47993626,188.89,188.75,12.14273626]
[1735608501758,2.6522,188.85,188.75,12.14273626]
[1735608501962,24.47993626,188.89,188.74,6.4585]
[1735608502261,24.47993626,188.89,188.74,12.14273626]
[1735608502858,2.6523,188.85,188.74,12.14273626]
[1735608503161,24.47993626,188.89,188.74,12.14273626]
[1735608503465,2.6533,188.77,188.73,21.58843626]
[1735608503763,2.6533,188.77,188.73,9.4457]
[1735608504361,12.14273626,188.83,188.73,6.2246]
[1735608506163,2.6537,188.75,188.73,6.2246]
[1735608506758,2.6537,188.74,188.7,15.46273626]
[1735608508159,2.6533,188.78,188.7,15.46273626]
[1735608508366,3.0266,188.82,188.7,15.46273626]
[1735608508762,3.0266,188.82,188.7,18.11703626]
[1735608509066,3.0266,188.82,188.7,15.46273626]
[1735608509265,3.0266,188.82,188.7,3.32]
[1735608509765,3.0266,188.82,188.69,12.14273626]
[1735608509968,3.0552,188.81,188.69,12.14273626]
[1735608510567,3.0552,188.81,188.66,6.3825]
[1735608510767,3.0706,188.8,188.67,12.14273626]
[1735608510969,3.32,188.79,188.67,12.14273626]
[1735608511171,3.0706,188.8,188.66,6.3825]
[1735608511466,3.32,188.79,188.66,21.17993626]
[1735608512066,3.0706,188.8,188.69,12.14273626]
[1735608512761,2.6535,188.76,188.69,14.79703626]
[1735608512960,3.0552,188.81,188.7,3.32]
[1735608513370,2.6533,188.77,188.7,5.9742]
[1735608513665,2.6533,188.77,188.7,3.32]
[1735608513871,2.6533,188.77,188.72,12.14273626]
[1735608515673,6.3466,188.82,188.72,12.14273626]
[1735608516871,2.6535,188.76,188.72,12.14273626]
[1735608519573,2.6536,188.75,188.72,12.14273626]
[1735608520274,2.6537,188.74,188.72,12.14273626]
[1735608520576,6.3466,188.82,188.72,12.14273626]
[1735608521172,2.653,188.79,188.72,12.14273626]
[1735608521375,6.3466,188.82,188.69,18.11713626]
[1735608521572,3.0266,188.82,188.72,12.14273626]
[1735608521772,3.32,188.83,188.72,12.14273626]
[1735608521966,3.32,188.85,188.72,12.14273626]
[1735608522177,2.6535,188.76,188.72,12.14273626]
[1735608522482,12.14273626,188.83,188.72,12.14273626]
[1735608522773,2.6537,188.75,188.72,12.14273626]
[1735608522974,12.14273626,188.83,188.72,12.14273626]
[1735608523377,2.6529,188.8,188.72,12.14273626]
[1735608523576,12.14273626,188.83,188.72,12.14273626]
[1735608524477,2.6535,188.76,188.72,12.14273626]
[1735608525573,12.14273626,188.83,188.72,12.14273626]
[1735608526280,3.32,188.85,188.74,7.77503661]
[1735608526481,7.77503661,188.83,188.74,7.77503661]
[1735608526780,2.6534,188.77,188.74,7.77503661]
[1735608527681,3.2155,188.87,188.76,7.77503661]
[1735608527876,7.77503661,188.84,188.76,7.77503661]
[1735608528073,3.2155,188.87,188.78,7.77503661]
[1735608528277,2.6527,188.82,188.78,7.77503661]
[1735608528477,3.2155,188.87,188.78,7.77503661]
[1735608528673,7.77503661,188.86,188.78,7.77503661]
[1735608528876,2.6526,188.82,188.78,7.77503661]
[1735608530175,2.6526,188.82,188.77,2.6533]
[1735608530577,2.6528,188.81,188.76,2.6534]
[1735608532179,3.2155,188.87,188.76,2.6534]
[1735608532481,3.2155,188.87,188.75,24.01816266]
[1735608532885,2.6528,188.81,188.75,24.01816266]
[1735608533178,3.2155,188.87,188.75,21.36456266]
[1735608533384,3.2155,188.87,188.76,2.6534]
[1735608535484,2.6526,188.82,188.76,2.6534]
[1735608536190,2.6526,188.82,188.75,21.36456266]
[1735608536385,2.6526,188.82,188.75,24.01816266]
[1735608537484,2.6523,188.84,188.78,14.79646266]
[1735608537681,3.059,188.93,188.79,3.3]
[1735608537886,141.04601992,189.0,188.87,12.14336266]
[1735608538183,10.68687951,188.95,188.88,9.2709]
[1735608538380,33.30026564,188.96,188.86,3.3]
[1735608538790,33.30026564,188.96,188.83,9.2709]
[1735608538985,2.652,188.87,188.84,3.3]
[1735608539689,12.14336266,188.96,188.83,9.2709]
[1735608539881,2.6521,188.86,188.84,3.3]
[1735608540286,2.6521,188.86,188.78,55.14]
[1735608540287,12.14336266,188.92,188.73,86.80853807]
[1735608540491,12.14336266,188.92,188.8,12.14336266]
[1735608540881,2.6526,188.82,188.8,12.14336266]
[1735608541091,2.6526,188.82,188.81,3.3]
[1735608543194,2.6526,188.82,188.79,3.174]
[1735608543388,2.6526,188.82,188.81,3.3]
[1735608544393,2.6526,188.82,188.8,12.14336266]
[1735608544599,2.6526,188.82,188.81,3.3]
[1735608545204,2.6522,188.85,188.81,3.3]
[1735608545409,6.2911,188.91,188.83,12.14336266]
[1735608546304,2.6522,188.85,188.83,12.14336266]
[1735608547207,2.652,188.87,188.83,12.14336266]
[1735608547403,13.91385527,188.96,188.86,12.14336266]
[1735608547602,13.91385527,188.96,188.87,3.3]
[1735608547806,3.1832,188.96,188.87,3.3]
[1735608548706,2.6514,188.91,188.87,3.3]
[1735608549204,33.30026564,189.04,188.89,12.14336266]
[1735608549399,6.0436,189.03,188.89,12.14336266]
[1735608549998,2.6506,188.96,188.89,12.14336266]
[1735608550205,6.0436,189.03,188.92,12.14336266]
[1735608550404,16.7722598,189.03,188.92,12.14336266]
[1735608550599,2.651,188.94,188.93,3.3]
[1735608553111,6.0436,189.03,188.93,3.3]
[1735608553714,2.6495,189.05,188.93,3.3]
[1735608554013,12.14336266,189.04,188.93,3.3]
[1735608554212,7.7582555,189.02,188.95,7.7582555]
[1735608555613,2.6506,188.96,188.95,7.7582555]
[1735608557308,2.6511,188.93,188.91,3.1349]
[1735608557511,7.7582555,189.0,188.88,2.9501]
[1735608557715,7.7582555,189.0,188.92,7.7582555]
[1735608557916,2.6512,188.93,188.89,3.3]
[1735608558110,2.6512,188.93,188.92,7.7582555]
[1735608560613,2.6508,188.95,188.92,7.7582555]
[1735608560815,2.6508,188.95,188.94,7.7582555]
[1735608561013,2.6508,188.95,188.94,11.0582555]
[1735608561408,2.6508,188.95,188.94,3.3]
[1735608561613,2.6508,188.95,188.94,11.0582555]
[1735608562115,5.9983,189.0,188.94,11.0582555]
[1735608562321,2.6506,188.97,188.96,7.7582555]
[1735608563214,3.2212,189.01,188.96,7.7582555]
[1735608563419,6.4905,189.06,188.98,7.7582555]
[1735608563420,3.1905,189.06,188.98,7.7582555]
[1735608563616,3.1905,189.06,189.0,7.7582555]
[1735608564113,3.1905,189.06,189.02,7.7582555]
[1735608564920,2.6497,189.03,189.02,7.7582555]
[1735608569224,7.7582555,189.05,188.89,2.89228913]
[1735608569525,7.7582555,189.05,188.98,7.7582555]
[1735608570025,2.6502,188.99,188.98,7.7582555]
[1735608571026,7.7582555,189.01,188.93,7.7582555]
[1735608571230,7.7582555,188.99,188.93,7.7582555]
[1735608571420,7.7582555,188.99,188.91,7.7582555]
[1735608571615,7.7582555,188.99,188.93,7.7582555]
[1735608571816,6.2492,189.0,188.93,7.7582555]
[1735608572025,14.0074555,189.0,188.93,7.7582555]
[1735608572218,2.6511,188.93,188.91,12.12437859]
[1735608572625,6.2492,189.0,188.89,15.01666772]
[1735608572922,6.2492,189.0,188.86,12.12437859]
[1735608572923,18.37357859,189.0,188.86,12.12437859]
[1735608573427,14.67214688,188.99,188.86,12.12437859]
[1735608573631,2.6518,188.88,188.86,12.12437859]
[1735608573928,3.3,188.96,188.86,12.12437859]
[1735608574128,2.6514,188.91,188.86,12.12437859]
[1735608574328,3.3,188.96,188.86,12.12437859]
[1735608574726,9.5492,189.0,188.89,12.12437859]
[1735608574927,9.5492,189.0,188.9,3.3]
[1735608575331,2.6507,188.96,188.92,12.12437859]
[1735608575524,9.5492,189.0,188.92,12.12437859]
[1735608576729,2.651,188.94,188.92,12.12437859]
[1735608577127,21.67357859,189.0,188.89,12.12437859]
[1735608577334,21.67357859,189.0,188.86,12.12437859]
[1735608577529,14.68493885,188.99,188.86,12.12437859]
[1735608577727,2.6515,188.9,188.86,12.12437859]
[1735608578324,14.68498875,188.99,188.86,12.12437859]
[1735608579028,2.6518,188.88,188.86,12.12437859]
[1735608582444,2.6519,188.87,188.86,12.12437859]
[1735608583836,2.6523,188.84,188.83,15.42437859]
[1735608584136,2.6523,188.84,188.83,12.12437859]
[1735608584330,12.12437859,188.94,188.78,3.1352]
[1735608584331,12.12437859,188.94,188.8,15.42437859]
[1735608584534,6.1745,188.93,188.8,15.42437859]
[1735608584733,6.1745,188.93,188.8,12.12437859]
[1735608584933,2.9181,188.92,188.8,12.12437859]
[1735608585235,12.12437859,188.91,188.8,12.12437859]
[1735608585434,3.3,188.9,188.78,3.3]
[1735608585829,2.652,188.87,188.77,12.12437859]
[1735608586034,3.3,188.9,188.77,15.42437859]
[1735608586534,2.6527,188.82,188.77,15.42437859]
[1735608586926,3.3,188.9,188.77,12.12437859]
[1735608587134,2.6528,188.81,188.77,12.12437859]
[1735608588137,3.3,188.9,188.77,12.12437859]
[1735608588335,2.6529,188.8,188.77,12.12437859]
[1735608588537,3.3,188.9,188.77,12.12437859]
[1735608588838,7.28009574,188.9,188.77,12.12437859]
[1735608589034,3.3,188.9,188.77,12.12437859]
[1735608589236,14.01200079,188.9,188.77,12.12437859]
[1735608589638,2.653,188.8,188.77,12.12437859]
[1735608590434,14.01200079,188.9,188.77,12.12437859]
[1735608590737,2.6532,188.78,188.77,12.12437859]
[1735608591038,3.3,188.85,188.74,12.12437859]
[1735608591238,9.0056,188.84,188.74,12.12437859]
[1735608593141,2.6535,188.76,188.74,12.12437859]
[1735608593345,9.0056,188.84,188.72,6.4725]
[1735608593535,9.0056,188.84,188.72,3.3]
[1735608593939,2.6536,188.76,188.72,3.3]
[1735608594241,9.0056,188.84,188.71,12.12437859]
[1735608594541,2.6538,188.74,188.71,12.12437859]
[1735608595741,9.0056,188.84,188.71,12.12437859]
[1735608595942,9.0056,188.84,188.71,14.77837859]
[1735608596138,12.3056,188.84,188.74,12.12437859]
[1735608596541,2.6532,188.78,188.74,12.12437859]
[1735608596837,12.3056,188.84,188.74,12.12437859]
[1735608597249,2.6531,188.79,188.74,12.12437859]
[1735608597843,2.6534,188.77,188.74,12.12437859]
[1735608599145,2.6535,188.76,188.74,12.12437859]
[1735608600045,9.0056,188.84,188.74,12.12437859]
[1735608600248,2.6536,188.75,188.74,12.12437859]
[1735608600441,9.0056,188.84,188.71,12.12437859]
[1735608600643,2.6539,188.73,188.71,12.12437859]
[1735608600847,9.0056,188.84,188.71,12.12437859]
[1735608602146,2.654,188.72,188.71,12.12437859]
[1735608602547,2.6539,188.73,188.71,12.12437859]
[1735608603446,9.0056,188.84,188.71,12.12437859]
[1735608603648,3.3,188.8,188.68,15.31797859]
[1735608604241,2.6544,188.7,188.68,15.31797859]
[1735608604648,3.3,188.8,188.68,12.12437859]
[1735608604848,12.12437859,188.79,188.68,12.12437859]
[1735608605254,12.12437859,188.76,188.59,6.3704]
[1735608605452,2.655,188.66,188.63,12.12437859]
[1735608605953,2.655,188.65,188.63,12.12437859]
[1735608606542,12.12437859,188.69,188.52,7.23404483]
[1735608606752,3.3,188.68,188.57,12.12437859]
[1735608607553,12.12437859,188.72,188.6,12.12437859]
[1735608607750,3.3,188.73,188.6,12.12437859]
[1735608607947,3.3,188.73,188.63,12.12437859]
[1735608608149,2.6545,188.69,188.63,12.12437859]
[1735608608350,3.3,188.73,188.63,12.12437859]
[1735608608556,3.3,188.73,188.6,12.12437859]
[1735608608746,2.6551,188.65,188.6,12.12437859]
[1735608609154,12.12437859,188.71,188.6,12.12437859]
[1735608609347,2.6547,188.67,188.62,2.6554]
[1735608609556,2.6547,188.67,188.6,12.12437859]
[1735608610750,3.3,188.73,188.6,12.12437859]
[1735608611343,2.6544,188.7,188.6,14.77997859]
[1735608611556,3.3,188.73,188.63,12.12437859]
[1735608611849,2.6546,188.68,188.63,12.12437859]
[1735608612456,2.6544,188.7,188.64,3.3]
[1735608612753,3.3,188.73,188.63,12.12437859]
[1735608613052,3.3,188.73,188.6,18.08007859]
[1735608613649,12.12437859,188.71,188.6,12.12437859]
[1735608614455,2.6546,188.68,188.6,12.12437859]
[1735608614656,12.12437859,188.71,188.6,12.12437859]
[1735608615052,12.12437859,188.68,188.58,3.3]
[1735608615359,3.3,188.67,188.55,6.3402]
[1735608615552,12.3831,188.67,188.55,3.0402]
[1735608616257,12.12437859,188.62,188.48,7.23404483]
[1735608616460,12.12437859,188.59,188.48,7.23404483]
[1735608616653,2.6568,188.53,188.46,7.23404483]
[1735608617257,3.3,188.56,188.46,7.23404483]
[1735608617853,3.3,188.56,188.45,12.12437859]
[1735608618255,3.3,188.55,188.45,12.12437859]
[1735608619259,2.6569,188.52,188.45,14.78217859]
[1735608619762,2.657,188.51,188.44,2.9147]
[1735608619960,3.3,188.5,188.44,2.9147]
[1735608620262,3.3,188.51,188.44,2.9147]
[1735608620462,3.3,188.51,188.28,19.35842342]
[1735608620651,12.12437859,188.5,188.35,3.3]
[1735608620857,12.12437859,188.5,188.37,18.28677859]
[1735608621060,3.3,188.49,188.37,18.28677859]
[1735608621462,2.658,188.45,188.37,18.28677859]
[1735608621661,9.3679,188.49,188.37,20.94557859]
[1735608621963,9.3679,188.49,188.37,18.28677859]
[1735608623260,12.12437859,188.47,188.37,18.28677859]
[1735608625076,2.658,188.44,188.37,18.28677859]
[1735608625365,12.12437859,188.47,188.37,6.1624]
[1735608625760,15.59675318,190.42,188.37,6.1624]
[1735608625761,3.38,188.48,188.37,6.1624]
[1735608626067,12.12437859,188.49,188.37,6.1624]
[1735608626371,2.6579,188.45,188.37,6.1624]
[1735608626677,2.6579,188.45,188.37,8.8213]
[1735608626966,12.12437859,188.49,188.39,12.12437859]
[1735608626967,15.50437859,188.49,188.39,12.12437859]
[1735608627166,12.12437859,188.52,188.39,12.12437859]
[1735608627366,3.38,188.51,188.43,2.6581]
[1735608627569,2.6574,188.49,188.39,12.12437859]
[1735608628670,12.12437859,188.52,188.44,2.6579]
[1735608628971,15.50437859,188.57,188.43,3.38]
[1735608629164,15.50437859,188.57,188.44,3.38]
[1735608629367,2.657,188.51,188.45,5.6481]
[1735608630072,2.6574,188.48,188.45,2.9903]
[1735608630274,12.12437859,188.54,188.45,2.9903]
[1735608630672,2.6572,188.5,188.45,2.9903]
[1735608631272,2.657,188.51,188.45,5.6481]
[1735608631574,12.12437859,188.57,188.45,15.11467859]
[1735608631868,12.12437859,188.6,188.48,12.12437859]
[1735608632080,12.12437859,188.6,188.49,3.38]
[1735608632277,12.12437859,188.6,188.49,6.5084]
[1735608632579,2.6562,188.57,188.49,6.5084]
[1735608632872,12.12437859,188.63,188.51,12.12437859]
[1735608633081,18.04877859,188.66,188.54,12.12437859]
[1735608633372,3.2118,188.68,188.57,12.12437859]
[1735608633580,12.12437859,188.66,188.58,3.38]
[1735608634277,2.6551,188.65,188.58,3.38]
[1735608634476,108.4854638,188.67,188.58,3.38]
[1735608634779,2.656,188.58,188.55,6.0823]
[1735608634972,19.47336048,188.64,188.55,6.0823]
[1735608635178,19.47336048,188.64,188.55,3.1595]
[1735608635372,2.6563,188.56,188.52,3.38]
[1735608635574,19.47336048,188.64,188.52,3.38]
[1735608636570,3.38,188.65,188.52,3.38]
[1735608637178,2.6556,188.61,188.54,2.6565]
[1735608637569,3.38,188.65,188.52,3.38]
[1735608638277,19.47336048,188.64,188.52,3.38]
[1735608638878,2.6563,188.57,188.52,3.38]
[1735608639077,19.47336048,188.64,188.5,6.0026]
[1735608639481,2.6563,188.57,188.51,3.38]
[1735608639878,22.40916048,188.64,188.5,6.0026]
[1735608640075,6.2296,188.63,188.5,6.0026]
[1735608640277,19.47336048,188.61,188.49,6.5084]
[1735608640476,2.6563,188.56,188.45,9.3088]
[1735608640673,3.38,188.6,188.45,9.3088]
[1735608640879,3.38,188.6,188.45,11.9665]
[1735608641282,2.657,188.52,188.45,11.9665]
[1735608641579,2.657,188.52,188.45,28.78216048]
[1735608642376,2.6571,188.51,188.46,2.6577]
[1735608642579,3.38,188.6,188.45,28.78216048]
[1735608642878,2.6568,188.53,188.47,2.6575]
[1735608643083,3.38,188.6,188.47,2.6575]
[1735608643381,3.38,188.6,188.45,28.78216048]
[1735608643681,2.6566,188.54,188.48,2.6574]
[1735608643885,3.38,188.61,188.48,19.47336048]
[1735608644882,2.6563,188.56,188.51,2.6569]
[1735608645081,2.6563,188.56,188.5,3.38]
[1735608645283,6.2296,188.63,188.5,3.38]
[1735608645481,2.6561,188.58,188.51,19.47336048]
[1735608645679,2.6561,188.58,188.52,3.0346]
[1735608645980,2.6557,188.6,188.54,2.6564]
[1735608646171,3.0244,188.63,188.54,2.6564]
[1735608646978,2.656,188.59,188.54,2.6564]
[1735608647382,3.0244,188.63,188.54,2.6564]
[1735608647582,3.0244,188.63,188.53,5.9996]
[1735608648884,2.6557,188.6,188.53,5.9996]
[1735608649083,3.0244,188.63,188.53,5.9996]
[1735608649585,3.38,188.65,188.53,5.9996]
[1735608649980,2.6562,188.57,188.53,5.9996]
[1735608650579,2.6561,188.58,188.53,5.9996]
[1735608650777,6.1665,188.66,188.53,5.9996]
[1735608650984,6.1665,188.66,188.53,8.6563]
[1735608653479,2.656,188.59,188.53,8.6563]
[1735608653877,6.1665,188.66,188.53,8.6563]
[1735608654083,2.6564,188.56,188.53,5.9996]
[1735608654383,6.1665,188.66,188.53,5.9996]
[1735608654581,6.1665,188.66,188.54,19.47336048]
[1735608654780,2.6558,188.6,188.55,2.6564]
[1735608654988,6.1665,188.66,188.54,19.47336048]
[1735608656277,3.44,188.68,188.57,12.16594479]
[1735608656474,14.0583461,188.69,188.57,15.60594479]
[1735608656681,3.44,188.69,188.58,2.656]
[1735608657396,12.16594479,188.67,188.57,3.44]
[1735608658682,12.16594479,188.67,188.54,12.16594479]
[1735608658683,6.1585,188.66,188.54,12.16594479]
[1735608659087,12.16594479,188.64,188.53,9.4396]
[1735608659282,3.44,188.63,188.53,6.5171]
[1735608659882,12.16594479,188.55,188.47,3.2152]
[1735608660383,2.6572,188.5,188.45,3.069]
[1735608660595,12.16594479,188.55,188.45,3.069]
[1735608661485,2.6564,188.56,188.47,12.16594479]
[1735608661682,2.6564,188.56,188.48,3.44]
[1735608661881,2.6564,188.56,188.49,2.6571]
[1735608662284,2.6564,188.56,188.48,3.44]
[1735608662483,2.6561,188.58,188.48,3.44]
[1735608662789,3.156,188.63,188.49,19.48318267]
[1735608662981,2.6554,188.62,188.55,2.6564]
[1735608663183,3.44,188.66,188.55,6.0964]
[1735608663788,19.48318267,188.67,188.55,3.44]
[1735608664090,9.386,188.68,188.55,3.44]
[1735608664486,2.6553,188.64,188.55,22.92318267]
[1735608664887,2.6554,188.62,188.57,2.6561]
[1735608665492,2.6551,188.65,188.55,2.6564]
[1735608665693,9.386,188.68,188.53,3.2058]
[1735608665988,19.48318267,188.66,188.51,3.44]
[1735608666289,2.6561,188.58,188.52,2.6567]
[1735608666495,2.6561,188.58,188.51,3.44]
[1735608666496,22.92318267,188.66,188.51,3.44]
[1735608666688,22.92318267,188.66,188.48,9.0992]
[1735608666689,19.48318267,188.63,188.48,9.0992]
[1735608666990,19.48318267,188.63,188.51,3.44]
[1735608667795,2.6566,188.54,188.51,3.44]
[1735608668003,3.44,188.61,188.49,3.44]
[1735608668496,2.6566,188.54,188.49,3.44]
[1735608668891,3.44,188.61,188.49,3.44]
[1735608669098,2.657,188.52,188.46,6.0977]
[1735608669598,2.6564,188.55,188.49,2.6571]
[1735608670092,9.1954,188.6,188.49,2.6571]
[1735608670296,2.6566,188.54,188.49,2.6571]
[1735608671698,2.6568,188.53,188.49,2.6571]
[1735608672493,9.1954,188.6,188.5,2.6571]
[1735608672699,9.1954,188.6,188.46,22.92318267]
[1735608673199,2.6568,188.52,188.48,2.6574]
[1735608674692,19.48318267,188.58,188.45,3.44]
[1735608675096,19.48318267,188.58,188.42,6.2373]
[1735608675097,2.6578,188.46,188.42,8.8954]
[1735608675402,19.48318267,188.55,188.42,6.2373]
[1735608676100,10.63753728,188.54,188.42,6.2373]
[1735608676602,2.6576,188.47,188.43,2.658]
[1735608676803,2.6576,188.47,188.42,6.2373]
[1735608677200,2.6576,188.47,188.43,2.6581]
[1735608677400,2.6575,188.48,188.42,6.2373]
[1735608677907,3.44,188.57,188.42,6.2373]
[1735608678097,9.1954,188.6,188.43,19.48318267]
[1735608678403,3.44,188.59,188.46,19.48318267]
[1735608678600,3.44,188.59,188.47,3.44]
[1735608679105,2.6564,188.56,188.49,2.6572]
[1735608679299,3.44,188.59,188.49,2.6572]
[1735608679704,3.44,188.59,188.47,3.44]
[1735608679898,3.44,188.59,188.48,2.6574]
[1735608680106,3.44,188.59,188.47,3.44]
[1735608681004,19.48318267,188.58,188.45,3.44]
[1735608681504,2.6568,188.53,188.48,2.6573]
[1735608682196,2.6568,188.53,188.49,2.6572]
[1735608682401,3.44,188.59,188.45,3.44]
[1735608683001,2.6566,188.54,188.45,3.44]
[1735608683495,3.44,188.59,188.45,3.44]
[1735608683696,2.6568,188.53,188.45,3.44]
[1735608683899,3.44,188.59,188.45,3.44]
[1735608684408,2.6569,188.52,188.45,3.44]
[1735608684599,3.44,188.59,188.48,2.6573]
[1735608684804,3.44,188.59,188.45,3.44]
[1735608685500,3.44,188.59,188.48,2.6574]
[1735608686207,2.6565,188.55,188.48,2.6574]
[1735608686396,12.18141717,188.57,188.48,2.6574]
[1735608687503,2.6568,188.52,188.48,2.6574]
[1735608688904,12.18141717,188.57,188.46,3.64]
[1735608689099,3.44,188.59,188.47,12.18141717]
[1735608689501,2.6564,188.56,188.47,12.18141717]
[1735608689707,3.44,188.59,188.47,14.83891717]
[1735608689901,12.18141717,188.54,188.43,3.64]
[1735608690102,2.6579,188.45,188.4,12.18141717]
[1735608690301,12.18141717,188.51,188.4,15.82141717]
[1735608690503,3.64,188.53,188.4,15.82141717]
[1735608690700,2.6569,188.52,188.43,12.18141717]
[1735608691003,12.18141717,188.55,188.45,2.6578]
[1735608691305,2.6572,188.5,188.45,2.6578]
[1735608691505,12.18141717,188.55,188.45,2.6578]
[1735608692419,2.6571,188.5,188.45,2.6578]
[1735608692601,12.18141717,188.55,188.46,2.6577]
[1735608693002,12.18141717,188.55,188.45,2.6578]
[1735608693202,12.18141717,188.55,188.43,12.18141717]
[1735608693409,2.6575,188.48,188.43,12.18141717]
[1735608694203,2.6575,188.48,188.43,14.83941717]
[1735608694705,2.6575,188.48,188.44,2.6579]
[1735608695105,2.6573,188.49,188.44,2.6579]
[1735608695305,12.18141717,188.55,188.44,2.6579]
[1735608695503,12.18141717,188.55,188.43,12.18141717]
[1735608696801,2.6569,188.52,188.43,12.18141717]
[1735608696998,12.18141717,188.55,188.43,12.18141717]
[1735608698607,2.6576,188.47,188.43,12.18141717]
[1735608698808,12.18141717,188.55,188.43,12.18141717]
[1735608699013,12.18141717,188.55,188.42,3.64]
[1735608699207,2.657,188.52,188.42,3.64]
[1735608699406,12.18141717,188.55,188.42,3.64]
[1735608700118,12.18141717,188.52,188.4,12.18141717]
[1735608700411,2.658,188.44,188.4,12.18141717]
[1735608700811,12.9761,188.51,188.4,12.18141717]
[1735608701011,2.6578,188.46,188.41,2.6583]
[1735608701406,2.6578,188.46,188.4,12.18141717]
[1735608701612,2.6575,188.48,188.43,14.83951717]
[1735608701914,9.3361,188.51,188.37,63.06309329]
[1735608702121,9.3361,188.51,188.37,78.88451046]
[1735608702122,3.2146,188.51,188.37,78.88451046]
[1735608702411,12.18141717,188.49,188.37,78.88451046]
[1735608702607,2.6586,188.4,188.37,12.18141717]
[1735608703515,2.6586,188.4,188.37,15.82141717]
[1735608703713,18.28531717,188.5,188.37,15.82141717]
[1735608704109,9.7439,188.5,188.4,12.18141717]
[1735608704305,2.658,188.44,188.4,12.18141717]
[1735608704808,9.7439,188.5,188.4,12.18141717]
[1735608705017,2.6584,188.41,188.4,12.18141717]
[1735608705708,2.6584,188.41,188.38,3.64]
[1735608705904,2.6585,188.4,188.38,15.82141717]
[1735608706305,2.6587,188.39,188.38,15.82141717]
[1735608706505,21.92531717,188.5,188.38,15.82141717]
[1735608707217,2.6587,188.4,188.38,12.18141717]
[1735608708314,2.6584,188.41,188.38,12.18141717]
[1735608709719,2.6583,188.42,188.38,12.18141717]
[1735608710115,9.7439,188.5,188.38,12.18141717]
[1735608710917,2.6576,188.47,188.38,12.18141717]
[1735608711121,9.7439,188.5,188.38,12.18141717]
[1735608711514,6.1039,188.5,188.38,12.18141717]
[1735608711714,6.1039,188.5,188.41,12.18141717]
[1735608712317,2.658,188.44,188.41,12.18141717]
[1735608712914,6.1039,188.5,188.41,12.18141717]
[1735608713221,6.1039,188.5,188.41,15.72141717]
[1735608713419,2.6576,188.47,188.42,2.6581]
[1735608713716,6.1039,188.5,188.41,15.72141717]
[1735608714520,2.6579,188.45,188.41,15.72141717]
[1735608715020,6.1039,188.5,188.41,15.72141717]
[1735608715222,2.658,188.44,188.41,15.72141717]
[1735608715422,6.1039,188.5,188.41,15.72141717]
[1735608715621,2.6575,188.48,188.41,15.72141717]
[1735608715822,6.1039,188.5,188.41,15.72141717]
[1735608716923,2.6581,188.44,188.41,15.72141717]
[1735608717921,2.6581,188.44,188.41,18.37981717]
[1735608718422,2.6578,188.45,188.42,2.6581]
[1735608719526,17.70842573,188.54,188.41,15.72141717]
[1735608719730,17.70842573,188.54,188.42,2.6582]
[1735608720230,2.6571,188.51,188.42,2.6582]
[1735608720432,13.72095246,188.54,188.42,2.6582]
[1735608720630,13.72095246,188.54,188.43,2.6581]
[1735608720826,3.09,188.54,188.44,12.18141717]
[1735608721532,2.657,188.51,188.45,2.6578]